[Event "Nové Hrady - Blesk"]
[Site "Nové Hrady, Czech Republic"]
[Date "2023.08.17"]
[Round "2.1"]
[White "Pulpan, Jakub"]
[Black "Valenz, Miroslav"]
[Result "1-0"]
[TimeControl "2x3+2s"]
[WhiteFideId "302759"]
[BlackFideId "326283"]
[WhiteElo "2452"]
[BlackElo "1929"]

1. Nf3 {[%clk 00:03:02]} {[%emt 00:00:01]} Nf6 {[%clk 00:03:03]} {[%emt
00:00:03]} 2. b3 {[%clk 00:03:02]} {[%emt 00:00:01]} g6 {[%clk 00:03:03]}
{[%emt 00:00:02]} 3. Bb2 {[%clk 00:03:03]} Bg7 {[%clk 00:03:04]} 4. g3 {[%clk
00:03:04]} d6 {[%clk 00:03:05]} 5. d4 {[%clk 00:03:06]} O-O {[%clk 00:03:05]}
{[%emt 00:00:06]} 6. Bg2 {[%clk 00:03:07]} Bg4 {[%clk 00:02:47]} {[%emt
00:00:20]} 7. Nbd2 {[%clk 00:03:06]} {[%emt 00:00:03]} Qd7 {[%clk 00:02:41]}
{[%emt 00:00:08]} 8. h3 {[%clk 00:03:02]} {[%emt 00:00:05]} Be6 {[%clk
00:02:42]} {[%emt 00:00:02]} 9. e4 {[%clk 00:03:02]} {[%emt 00:00:02]} c6
{[%clk 00:02:32]} {[%emt 00:00:12]} 10. Ng5 {[%clk 00:03:00]} {[%emt 00:00:03]}
h6 {[%clk 00:02:28]} {[%emt 00:00:07]} 11. Nxe6 {[%clk 00:03:00]} {[%emt
00:00:02]} fxe6 {[%clk 00:02:24]} {[%emt 00:00:05]} 12. O-O {[%clk 00:02:59]}
{[%emt 00:00:04]} Na6 {[%clk 00:02:22]} {[%emt 00:00:05]} 13. Qe2 {[%clk
00:02:58]} {[%emt 00:00:02]} Nc7 {[%clk 00:02:12]} {[%emt 00:00:13]} 14. Nf3
{[%clk 00:02:56]} {[%emt 00:00:03]} Rf7 {[%clk 00:01:52]} {[%emt 00:00:21]} 15.
e5 {[%clk 00:02:47]} {[%emt 00:00:11]} Nfd5 {[%clk 00:01:51]} {[%emt 00:00:04]}
16. c4 {[%clk 00:02:33]} {[%emt 00:00:15]} Nb6 {[%clk 00:01:53]} {[%emt
00:00:01]} 17. Qe4 {[%clk 00:02:26]} {[%emt 00:00:09]} g5 {[%clk 00:01:47]}
{[%emt 00:00:07]} 18. h4 {[%clk 00:02:26]} {[%emt 00:00:03]} d5 {[%clk
00:01:27]} {[%emt 00:00:22]} 19. Qg4 {[%clk 00:02:23]} {[%emt 00:00:04]} gxh4
{[%clk 00:01:17]} {[%emt 00:00:12]} 20. c5 {[%clk 00:02:16]} {[%emt 00:00:11]}
hxg3 {[%clk 00:00:43]} {[%emt 00:00:35]} 21. cxb6 {[%clk 00:02:17]} gxf2+
{[%clk 00:00:43]} 22. Rxf2 {[%clk 00:02:18]} {[%emt 00:00:03]} axb6 {[%clk
00:00:44]} 23. Bc1 {[%clk 00:02:13]} {[%emt 00:00:07]} Kh7 {[%clk 00:00:32]}
{[%emt 00:00:16]} 24. Ng5+ {[%clk 00:02:13]} hxg5 {[%clk 00:00:16]} {[%emt
00:00:19]} 25. Qh5+ {[%clk 00:02:12]} {[%emt 00:00:03]} Kg8 {[%clk 00:00:16]}
{[%emt 00:00:03]} 26. Qxf7+ {[%clk 00:02:11]} {[%emt 00:00:01]} Kh8 {[%clk
00:00:16]} 27. Bxd5 {[%clk 00:02:04]} {[%emt 00:00:12]} Qxd5 {[%clk 00:00:09]}
{[%emt 00:00:09]} 28. Rh2+ {[%clk 00:02:04]} Bh6 {[%clk 00:00:07]} {[%emt
00:00:05]} 29. Rxh6# 1-0

[Event "Nové Hrady - Blesk"]
[Site "Nové Hrady, Czech Republic"]
[Date "2023.08.17"]
[Round "2.2"]
[White "Slabý, Matěj"]
[Black "Zeman, Matyas"]
[Result "0-1"]
[TimeControl "2x3+2s"]
[WhiteFideId "23734876"]
[BlackFideId "364398"]
[WhiteElo "1894"]
[BlackElo "2254"]

1. e4 {[%clk 00:03:00]} {[%emt 00:00:04]} e6 {[%clk 00:03:01]} {[%emt
00:00:03]} 2. d4 {[%clk 00:03:01]} {[%emt 00:00:02]} d5 {[%clk 00:03:03]} 3. e5
{[%clk 00:03:02]} {[%emt 00:00:01]} c5 {[%clk 00:03:03]} 4. c3 {[%clk
00:03:03]} Bd7 {[%clk 00:03:04]} {[%emt 00:00:04]} 5. Nf3 {[%clk 00:03:03]}
{[%emt 00:00:02]} Qb6 {[%clk 00:03:04]} {[%emt 00:00:02]} 6. a3 {[%clk
00:02:58]} {[%emt 00:00:07]} Bb5 {[%clk 00:03:05]} {[%emt 00:00:01]} 7. Bxb5+
{[%clk 00:02:35]} {[%emt 00:00:25]} Qxb5 {[%clk 00:03:05]} 8. Qe2 {[%clk
00:02:31]} {[%emt 00:00:07]} Qxe2+ {[%clk 00:03:05]} {[%emt 00:00:02]} 9. Kxe2
{[%clk 00:02:32]} Nd7 {[%clk 00:03:02]} {[%emt 00:00:06]} 10. Be3 {[%clk
00:02:32]} {[%emt 00:00:03]} Rc8 {[%clk 00:02:57]} {[%emt 00:00:07]} 11. Nbd2
{[%clk 00:02:32]} {[%emt 00:00:02]} Ne7 {[%clk 00:02:56]} {[%emt 00:00:03]} 12.
b4 {[%clk 00:02:06]} {[%emt 00:00:28]} cxd4 {[%clk 00:02:55]} {[%emt 00:00:03]}
13. cxd4 {[%clk 00:02:07]} {[%emt 00:00:01]} Nc6 {[%clk 00:02:35]} {[%emt
00:00:22]} 14. Rhc1 {[%clk 00:02:04]} {[%emt 00:00:04]} Nb6 {[%clk 00:02:29]}
{[%emt 00:00:09]} 15. Rc2 {[%clk 00:01:57]} {[%emt 00:00:09]} Be7 {[%clk
00:02:24]} {[%emt 00:00:07]} 16. Rac1 {[%clk 00:01:58]} Kd7 {[%clk 00:02:25]}
{[%emt 00:00:01]} 17. Nb3 {[%clk 00:01:57]} {[%emt 00:00:04]} Nc4 {[%clk
00:02:24]} {[%emt 00:00:02]} 18. Ra2 {[%clk 00:01:37]} {[%emt 00:00:22]} b6
{[%clk 00:02:21]} {[%emt 00:00:04]} 19. Nbd2 {[%clk 00:01:27]} {[%emt
00:00:13]} Nxe3 {[%clk 00:02:04]} {[%emt 00:00:19]} 20. Kxe3 {[%clk 00:01:28]}
f6 {[%clk 00:02:05]} 21. exf6 {[%clk 00:01:23]} {[%emt 00:00:09]} gxf6 {[%clk
00:02:06]} 22. Rac2 {[%clk 00:01:24]} {[%emt 00:00:02]} Bd6 {[%clk 00:02:02]}
{[%emt 00:00:05]} 23. g3 {[%clk 00:01:23]} {[%emt 00:00:03]} e5 {[%clk
00:01:43]} {[%emt 00:00:21]} 24. Nb3 {[%clk 00:01:19]} {[%emt 00:00:07]} Ne7
{[%clk 00:01:28]} {[%emt 00:00:17]} 25. Rxc8 {[%clk 00:01:11]} {[%emt
00:00:09]} Nxc8 {[%clk 00:01:29]} {[%emt 00:00:02]} 26. Rd1 {[%clk 00:00:55]}
{[%emt 00:00:19]} Ne7 {[%clk 00:01:28]} {[%emt 00:00:02]} 27. Rc1 {[%clk
00:00:21]} {[%emt 00:00:36]} h6 {[%clk 00:01:24]} {[%emt 00:00:06]} 28. Nh4
{[%clk 00:00:21]} {[%emt 00:00:02]} Ke6 {[%clk 00:01:25]} 29. f4 {[%emt
00:00:10]} exf4+ {[%clk 00:01:17]} {[%emt 00:00:08]} 30. gxf4 {[%clk 00:00:15]}
{[%emt 00:00:02]} Nf5+ {[%clk 00:01:17]} 31. Nxf5 {[%clk 00:00:15]} {[%emt
00:00:03]} Kxf5 {[%clk 00:01:19]} 32. Rf1 {[%clk 00:00:08]} {[%emt 00:00:11]}
Re8+ {[%clk 00:01:19]} {[%emt 00:00:01]} 33. Kd3 {[%clk 00:00:05]} {[%emt
00:00:05]} Re4 {[%clk 00:01:15]} {[%emt 00:00:06]} 34. Rf3 {[%clk 00:00:03]}
{[%emt 00:00:05]} Rxf4 {[%clk 00:01:14]} {[%emt 00:00:02]} 35. Rh3 {[%clk
00:00:04]} Kg5 {[%clk 00:01:08]} {[%emt 00:00:10]} 36. Nd2 {[%clk 00:00:03]}
{[%emt 00:00:02]} h5 {[%clk 00:01:00]} {[%emt 00:00:09]} 37. Rg3+ {[%clk
00:00:03]} {[%emt 00:00:02]} Rg4 {[%clk 00:01:00]} {[%emt 00:00:03]} 38. Rh3
{[%clk 00:00:04]} Rg2 {[%clk 00:00:53]} {[%emt 00:00:10]} 39. Nf3+ {[%clk
00:00:04]} Kg4 {[%clk 00:00:54]} 0-1

[Event "Nové Hrady - Blesk"]
[Site "Nové Hrady, Czech Republic"]
[Date "2023.08.17"]
[Round "2.3"]
[White "Babula, Milan"]
[Black "Prinz, Hubert"]
[Result "1-0"]
[TimeControl "2x3+2s"]
[WhiteFideId "300632"]
[BlackFideId "1639447"]
[WhiteElo "2176"]
[BlackElo "1884"]

1. e4 {[%clk 00:03:04]} {[%emt 00:00:21]} d5 {[%clk 00:03:04]} 2. exd5 {[%emt
00:00:02]} Qxd5 {[%emt 00:00:01]} 3. Nc3 {[%clk 00:03:04]} Qd6 {[%clk
00:03:07]} 4. d4 {[%clk 00:03:00]} {[%emt 00:00:07]} Nf6 {[%clk 00:03:08]} 5.
Be3 {[%clk 00:02:55]} {[%emt 00:00:08]} a6 {[%clk 00:03:09]} 6. Nf3 {[%clk
00:02:54]} {[%emt 00:00:04]} Bg4 {[%clk 00:03:10]} {[%emt 00:00:02]} 7. Be2
{[%clk 00:02:55]} c6 {[%clk 00:03:10]} {[%emt 00:00:02]} 8. h3 {[%clk
00:02:50]} {[%emt 00:00:07]} Bxf3 {[%clk 00:03:10]} {[%emt 00:00:01]} 9. Bxf3
{[%clk 00:02:50]} {[%emt 00:00:02]} e6 {[%clk 00:03:11]} 10. O-O {[%clk
00:02:47]} {[%emt 00:00:06]} Be7 {[%clk 00:03:11]} {[%emt 00:00:02]} 11. a3
{[%clk 00:02:44]} {[%emt 00:00:06]} O-O {[%clk 00:03:11]} 12. Qd2 {[%clk
00:02:42]} {[%emt 00:00:05]} Nd5 {[%clk 00:03:00]} {[%emt 00:00:13]} 13. Ne4
{[%clk 00:02:32]} {[%emt 00:00:12]} Qd8 {[%clk 00:03:01]} 14. c4 {[%clk
00:02:29]} {[%emt 00:00:06]} Nxe3 {[%clk 00:03:00]} {[%emt 00:00:03]} 15. fxe3
{[%clk 00:02:29]} Nd7 {[%clk 00:02:57]} {[%emt 00:00:06]} 16. Qc2 {[%clk
00:02:28]} {[%emt 00:00:04]} Nf6 {[%clk 00:02:45]} {[%emt 00:00:13]} 17. Nc3
{[%clk 00:02:23]} {[%emt 00:00:07]} Rb8 {[%clk 00:02:34]} {[%emt 00:00:13]} 18.
Rad1 {[%clk 00:02:24]} {[%emt 00:00:01]} Qc8 {[%clk 00:02:19]} {[%emt
00:00:17]} 19. e4 {[%clk 00:02:20]} {[%emt 00:00:07]} b5 {[%clk 00:02:19]}
{[%emt 00:00:02]} 20. e5 {[%clk 00:02:19]} {[%emt 00:00:02]} Nd7 {[%clk
00:01:57]} {[%emt 00:00:23]} 21. c5 {[%clk 00:02:20]} {[%emt 00:00:02]} f6
{[%clk 00:01:02]} {[%emt 00:00:57]} 22. Qb3 {[%clk 00:02:21]} Nxc5 {[%clk
00:00:32]} {[%emt 00:00:33]} 23. dxc5 {[%clk 00:02:21]} {[%emt 00:00:02]} Bxc5+
{[%clk 00:00:33]} 24. Kh1 {[%clk 00:02:22]} {[%emt 00:00:02]} fxe5 {[%clk
00:00:15]} {[%emt 00:00:20]} 25. Ne4 {[%clk 00:02:22]} {[%emt 00:00:02]} Bd4
{[%clk 00:00:08]} {[%emt 00:00:09]} 26. Bg4 {[%clk 00:01:58]} {[%emt 00:00:26]}
1-0

[Event "Nové Hrady - Blesk"]
[Site "Nové Hrady, Czech Republic"]
[Date "2023.08.17"]
[Round "2.4"]
[White "Šimůnek, Jakub Šimon"]
[Black "Vybiral, Zdenek"]
[Result "1-0"]
[TimeControl "2x3+2s"]
[WhiteFideId "23709464"]
[BlackFideId "305200"]
[WhiteElo "1921"]
[BlackElo "2158"]

1. e4 {[%clk 00:03:02]} {[%emt 00:00:02]} e6 {[%clk 00:03:02]} {[%emt
00:00:02]} 2. d4 {[%clk 00:03:03]} d5 {[%clk 00:03:04]} 3. exd5 {[%clk
00:03:04]} {[%emt 00:00:03]} exd5 {[%clk 00:03:05]} 4. Nf3 {[%clk 00:03:05]}
Nc6 {[%clk 00:03:00]} {[%emt 00:00:09]} 5. Bd3 {[%clk 00:02:57]} {[%emt
00:00:10]} Bd6 {[%clk 00:02:57]} {[%emt 00:00:05]} 6. c4 {[%clk 00:02:38]}
{[%emt 00:00:21]} dxc4 {[%clk 00:02:53]} {[%emt 00:00:05]} 7. Bxc4 {[%clk
00:02:38]} {[%emt 00:00:02]} Nf6 {[%clk 00:02:47]} {[%emt 00:00:08]} 8. O-O
{[%clk 00:02:38]} {[%emt 00:00:02]} O-O {[%clk 00:02:48]} 9. h3 {[%clk
00:02:27]} {[%emt 00:00:14]} h6 {[%clk 00:02:43]} {[%emt 00:00:07]} 10. Nc3
{[%clk 00:02:24]} {[%emt 00:00:06]} Re8 {[%clk 00:02:43]} {[%emt 00:00:02]} 11.
Be3 {[%clk 00:02:19]} {[%emt 00:00:06]} Bf5 {[%clk 00:02:24]} {[%emt 00:00:21]}
12. Qb3 {[%clk 00:01:52]} {[%emt 00:00:30]} Qd7 {[%clk 00:02:25]} 13. Qxb7
{[%clk 00:01:17]} {[%emt 00:00:38]} Rab8 {[%clk 00:01:41]} {[%emt 00:00:46]} 14.
Qa6 {[%clk 00:01:13]} {[%emt 00:00:06]} Rb6 {[%clk 00:01:41]} 15. Qa4 {[%clk
00:01:07]} {[%emt 00:00:08]} Rb4 {[%clk 00:01:42]} 16. Qa6 {[%clk 00:01:06]}
{[%emt 00:00:05]} Nb8 {[%clk 00:01:28]} {[%emt 00:00:16]} 17. Bxf7+ {[%clk
00:00:31]} {[%emt 00:00:37]} Qxf7 {[%clk 00:01:21]} {[%emt 00:00:08]} 18. Qxa7
{[%clk 00:00:23]} {[%emt 00:00:11]} Rxb2 {[%clk 00:01:18]} {[%emt 00:00:05]} 19.
Qa5 {[%clk 00:00:15]} {[%emt 00:00:10]} Be4 {[%clk 00:01:16]} {[%emt 00:00:04]}
20. Nxe4 {[%clk 00:00:13]} {[%emt 00:00:04]} Nxe4 {[%clk 00:01:16]} {[%emt
00:00:02]} 21. Rfe1 {[%clk 00:00:10]} {[%emt 00:00:05]} Bb4 {[%clk 00:01:04]}
{[%emt 00:00:14]} 22. Qb5 {[%clk 00:00:08]} {[%emt 00:00:04]} Bc3 {[%clk
00:00:56]} {[%emt 00:00:10]} 23. Qa4 {[%clk 00:00:04]} {[%emt 00:00:05]} Bxe1
{[%clk 00:00:55]} {[%emt 00:00:04]} 24. Rxe1 {[%clk 00:00:05]} Rxa2 {[%clk
00:00:54]} {[%emt 00:00:03]} 25. Qb5 {[%clk 00:00:04]} {[%emt 00:00:03]} Nd7
{[%clk 00:00:39]} {[%emt 00:00:17]} 26. Qd3 {[%clk 00:00:04]} {[%emt 00:00:03]}
Ra5 {[%clk 00:00:23]} {[%emt 00:00:18]} 27. Rc1 {[%clk 00:00:04]} c5 {[%clk
00:00:17]} {[%emt 00:00:08]} 28. dxc5 {[%clk 00:00:05]} {[%emt 00:00:02]} Ndxc5
{[%clk 00:00:18]} {[%emt 00:00:01]} 29. Bxc5 {[%clk 00:00:04]} {[%emt
00:00:02]} Rxc5 {[%clk 00:00:19]} 30. Re1 {[%clk 00:00:03]} {[%emt 00:00:05]}
Qd5 {[%clk 00:00:09]} {[%emt 00:00:11]} 31. Qa3 {[%clk 00:00:03]} {[%emt
00:00:02]} Rcc8 {[%clk 00:00:08]} {[%emt 00:00:10]} 32. Qa4 {[%clk 00:00:04]}
Nc3 {[%clk 00:00:06]} 33. Rxe8+ {[%clk 00:00:05]} Rxe8 34. Qxe8+ {[%emt
00:00:01]} Kh7 {[%emt 00:00:03]} 35. Qe1 {[%clk 00:00:05]} {[%emt 00:00:02]}
Qc4 {[%clk 00:00:07]} {[%emt 00:00:01]} 36. Kh2 {[%clk 00:00:04]} {[%emt
00:00:03]} Ne2 {[%emt 00:00:03]} 37. Qd2 {[%clk 00:00:04]} Qe4 {[%clk
00:00:08]} {[%emt 00:00:02]} 38. Ne1 {[%clk 00:00:04]} {[%emt 00:00:02]} Nf4
{[%clk 00:00:05]} {[%emt 00:00:06]} 39. g3 {[%emt 00:00:02]} Qf5 {[%clk
00:00:00]} {[%emt 00:00:03]} 40. Qxf4 {[%clk 00:00:05]} Qe6 {[%clk 00:00:00]}
41. Nf3 {[%clk 00:00:05]} {[%emt 00:00:03]} Qe2 {[%clk 00:00:00]} 1-0

[Event "Nové Hrady - Blesk"]
[Site "Nové Hrady, Czech Republic"]
[Date "2023.08.17"]
[Round "2.5"]
[White "Papacek, Stepan"]
[Black "Rausch, Rudolf"]
[Result "1/2-1/2"]
[TimeControl "2x3+2s"]
[WhiteFideId "301035"]
[BlackFideId "1639455"]
[WhiteElo "2137"]
[BlackElo "1806"]

1. e4 {[%clk 00:03:04]} {[%emt 00:00:50]} g6 {[%clk 00:03:03]} {[%emt
00:00:02]} 2. d4 {[%clk 00:03:04]} {[%emt 00:00:02]} d6 {[%clk 00:03:04]} 3.
Be2 Bg7 {[%emt 00:00:03]} 4. Nf3 {[%clk 00:03:01]} {[%emt 00:00:05]} Nf6 {[%clk
00:03:06]} {[%emt 00:00:02]} 5. Nc3 {[%clk 00:03:02]} O-O {[%clk 00:03:06]}
{[%emt 00:00:02]} 6. O-O {[%clk 00:03:02]} {[%emt 00:00:02]} a6 {[%clk
00:03:03]} {[%emt 00:00:05]} 7. a4 {[%clk 00:03:02]} {[%emt 00:00:02]} b6
{[%clk 00:03:02]} {[%emt 00:00:03]} 8. e5 {[%clk 00:02:49]} {[%emt 00:00:15]}
dxe5 {[%clk 00:03:01]} {[%emt 00:00:03]} 9. dxe5 {[%clk 00:02:50]} Qxd1 {[%clk
00:03:02]} 10. Rxd1 {[%clk 00:02:50]} Nfd7 {[%clk 00:03:01]} {[%emt 00:00:07]}
11. Nd5 {[%clk 00:02:47]} {[%emt 00:00:04]} Nxe5 {[%clk 00:02:41]} {[%emt
00:00:23]} 12. Nxe7+ {[%clk 00:02:41]} {[%emt 00:00:09]} Re8 {[%clk 00:02:41]}
13. Nxc8 {[%clk 00:02:40]} {[%emt 00:00:03]} Rxc8 {[%emt 00:00:08]} 14. Bf4
{[%clk 00:02:31]} {[%emt 00:00:05]} Nxf3+ {[%clk 00:02:33]} {[%emt 00:00:09]}
15. Bxf3 {[%clk 00:02:32]} {[%emt 00:00:02]} Ra7 {[%clk 00:02:34]} 16. c3
{[%clk 00:02:21]} {[%emt 00:00:14]} c5 {[%clk 00:02:30]} {[%emt 00:00:05]} 17.
Rd6 {[%clk 00:02:19]} {[%emt 00:00:04]} Re7 {[%clk 00:01:48]} {[%emt 00:00:45]}
18. Rad1 {[%clk 00:02:13]} {[%emt 00:00:07]} Rce8 {[%clk 00:01:37]} {[%emt
00:00:14]} 19. Kf1 {[%clk 00:02:06]} {[%emt 00:00:08]} b5 {[%clk 00:01:35]}
{[%emt 00:00:05]} 20. a5 {[%clk 00:02:00]} {[%emt 00:00:08]} b4 {[%clk
00:01:34]} {[%emt 00:00:03]} 21. cxb4 {[%clk 00:01:49]} {[%emt 00:00:12]} cxb4
{[%clk 00:01:35]} 22. b3 {[%clk 00:01:41]} {[%emt 00:00:12]} Be5 {[%clk
00:01:33]} {[%emt 00:00:03]} 23. Bxe5 {[%clk 00:01:37]} {[%emt 00:00:07]} Rxe5
{[%clk 00:01:34]} 24. Rd8 {[%clk 00:01:18]} {[%emt 00:00:22]} Kf8 {[%clk
00:01:29]} {[%emt 00:00:07]} 25. g3 {[%clk 00:01:15]} {[%emt 00:00:05]} Rxa5
{[%clk 00:01:27]} {[%emt 00:00:04]} 26. R1d4 {[%clk 00:01:06]} {[%emt
00:00:10]} Ra1+ {[%clk 00:01:10]} {[%emt 00:00:21]} 27. Kg2 {[%clk 00:01:06]}
a5 {[%clk 00:00:54]} {[%emt 00:00:18]} 28. R8d5 {[%clk 00:00:40]} {[%emt
00:00:28]} a4 {[%clk 00:00:47]} {[%emt 00:00:09]} 29. Rxb4 {[%clk 00:00:40]}
{[%emt 00:00:02]} axb3 {[%clk 00:00:44]} {[%emt 00:00:04]} 30. Rxb3 {[%clk
00:00:41]} Nc6 {[%clk 00:00:35]} {[%emt 00:00:12]} 31. Rd7 {[%clk 00:00:39]}
{[%emt 00:00:03]} Ne5 {[%clk 00:00:36]} 32. Rc7 {[%clk 00:00:39]} {[%emt
00:00:05]} Nxf3 {[%clk 00:00:36]} {[%emt 00:00:02]} 33. Rxf3 {[%clk 00:00:39]}
{[%emt 00:00:02]} Re7 {[%clk 00:00:35]} {[%emt 00:00:03]} 1/2-1/2

[Event "Nové Hrady - Blesk"]
[Site "Nové Hrady, Czech Republic"]
[Date "2023.08.17"]
[Round "2.6"]
[White "Durchan, Milan"]
[Black "Richtrova, Eliska"]
[Result "0-1"]
[TimeControl "2x3+2s"]
[WhiteFideId "333212"]
[BlackFideId "300683"]
[WhiteElo "1677"]
[BlackElo "2122"]

1. f4 {[%clk 00:03:02]} {[%emt 00:01:35]} d5 {[%clk 00:03:02]} {[%emt
00:00:02]} 2. Nf3 g6 {[%emt 00:00:02]} 3. g3 {[%clk 00:03:02]} Bg7 {[%clk
00:03:02]} 4. Bg2 {[%clk 00:03:02]} Nf6 {[%clk 00:03:02]} {[%emt 00:00:04]} 5.
c3 {[%clk 00:03:02]} O-O {[%emt 00:00:04]} 6. Qc2 c5 {[%clk 00:03:02]} {[%emt
00:00:04]} 7. d3 {[%clk 00:03:02]} {[%emt 00:00:01]} Bf5 {[%clk 00:03:02]}
{[%emt 00:00:08]} 8. Nbd2 {[%clk 00:03:02]} Qc8 {[%clk 00:03:02]} {[%emt
00:00:03]} 9. e4 {[%clk 00:03:02]} {[%emt 00:00:11]} Bh3 {[%clk 00:03:02]}
{[%emt 00:00:03]} 10. O-O {[%clk 00:03:02]} {[%emt 00:00:03]} Nc6 {[%clk
00:03:02]} {[%emt 00:00:18]} 11. Rd1 {[%clk 00:03:02]} {[%emt 00:00:10]} Bxg2
{[%clk 00:03:02]} {[%emt 00:00:07]} 12. Kxg2 {[%clk 00:03:02]} Ng4 {[%clk
00:03:02]} {[%emt 00:00:03]} 13. Nb3 {[%clk 00:03:02]} {[%emt 00:00:10]} c4
{[%clk 00:03:02]} {[%emt 00:00:27]} 14. dxc4 {[%clk 00:02:40]} {[%emt
00:00:40]} dxc4 {[%clk 00:03:03]} 15. Nbd4 {[%clk 00:02:40]} Nxd4 {[%clk
00:02:55]} {[%emt 00:00:13]} 16. Nxd4 {[%emt 00:00:05]} e5 {[%clk 00:02:39]}
{[%emt 00:00:15]} 17. Nf3 {[%clk 00:02:16]} {[%emt 00:00:25]} exf4 {[%clk
00:02:30]} {[%emt 00:00:12]} 18. gxf4 {[%clk 00:02:16]} {[%emt 00:00:01]} Qc5
{[%clk 00:02:05]} {[%emt 00:00:28]} 19. Qe2 {[%clk 00:02:03]} {[%emt 00:00:15]}
Rad8 {[%clk 00:02:01]} {[%emt 00:00:06]} 20. Nd4 {[%clk 00:01:53]} {[%emt
00:00:11]} Qh5 {[%clk 00:01:33]} {[%emt 00:00:31]} 21. h3 {[%clk 00:01:19]}
{[%emt 00:00:36]} Nf6 {[%clk 00:01:35]} 22. Qxh5 {[%clk 00:01:16]} {[%emt
00:00:05]} Nxh5 {[%clk 00:01:36]} 23. Kf3 {[%clk 00:01:05]} {[%emt 00:00:14]}
Rfe8 {[%clk 00:01:35]} {[%emt 00:00:04]} 24. Be3 {[%clk 00:01:00]} {[%emt
00:00:06]} Nf6 {[%clk 00:01:36]} 25. e5 {[%clk 00:01:01]} {[%emt 00:00:02]} Nd5
{[%clk 00:01:37]} 26. Bf2 {[%clk 00:00:38]} {[%emt 00:00:24]} g5 {[%clk
00:01:28]} {[%emt 00:00:13]} 27. Nf5 {[%clk 00:00:12]} {[%emt 00:00:27]} Nxf4
{[%clk 00:01:28]} {[%emt 00:00:03]} 28. Nxg7 {[%emt 00:00:04]} Kxg7 {[%emt
00:00:01]} 29. Bd4 {[%clk 00:00:00]} {[%emt 00:00:12]} Kg6 {[%clk 00:01:29]}
{[%emt 00:00:03]} 30. Rg1 {[%emt 00:00:04]} h6 31. h4 {[%emt 00:00:04]} 0-1